Cogmind - Beta 17.1 @@@ ROGUE MODE // 2026.08.26 @ 23:24:27 Player: Darwin Result: Destroyed by Autobeam Turret with Autobeam Performance ------------- Evolutions (0) 0 Regions Visited (3) 600 Robots Destroyed (7) 35 Value Destroyed (186) 186 Prototype IDs (0) 0 Alien Tech Used (0) 0 Bonus (0) 0 TOTAL SCORE: 821 Bonus ------- None Cogmind --------- Core Integrity 0/250 Matter 300/300 Energy 261/265 System Corruption 0% Temperature Cool (14) Movement Treading (160) Location -10/Subcaves Parts ------- > --- POWER (1) -------- Improved Ion Engine > --- PROPULSION (2) --- Light Treads Light Treads > --- UTILITY (2) ------ Small Storage Unit Sensor Array > --- WEAPON (2) ------- Riot Gun Subdweller Machine Gun > --- INVENTORY (8) ---- Light Armor Plating Beam Rifle Beam Rifle Subdweller Beam Cannon Datajack Makeshift Sword Blade Trap Blade Trap Peak State ------------ > --- POWER ------------ Improved Ion Engine > --- PROPULSION ------- Light Treads Light Treads > --- UTILITY ---------- Small Storage Unit Sensor Array > --- WEAPON ----------- Riot Gun Subdweller Machine Gun > --- INVENTORY -------- Light Armor Plating Beam Rifle Beam Rifle Subdweller Beam Cannon Datajack Makeshift Sword Blade Trap Blade Trap [Rating: 12] Favorites ----------- Power Improved Ion Engine Engine Improved Ion Engine Propulsion Light Treads Treads Light Treads Wheel Compact Wheel Utility Small Storage Unit Device Sensor Array Storage Small Storage Unit Weapon Beam Rifle Energy Gun Beam Rifle Ballistic Gun Subdweller Machine Gun Build | -11 -10 -10 -10 ------- Run | Yrd Mat Min Sub Slots Evolved . | . . . . Power . | . . . . Propulsion . | . . . . Utility . | . . . . Weapon . | . . . . Parts Attached 18 | 6 5 4 3 Power 3 | 1 1 1 . Engine 3 | 1 1 1 . Core . | . . . . Reactor . | . . . . Propulsion 4 | 2 2 . . Treads 2 | 2 . . . Leg . | . . . . Wheel 2 | . 2 . . Hover . | . . . . Flight . | . . . . Utility 2 | 1 . 1 . Device 1 | . . 1 . Storage 1 | 1 . . . Processor . | . . . . Hackware . | . . . . Protection . | . . . . Artifact . | . . . . Weapon 9 | 2 2 2 3 Energy Gun 7 | 1 2 2 2 Energy Cannon . | . . . . Ballistic Gun 2 | 1 . . 1 Ballistic Cannon . | . . . . Launcher . | . . . . Special Weapon . | . . . . Impact Weapon . | . . . . Slashing Weapon . | . . . . Piercing Weapon . | . . . . Special Melee Weapon . | . . . . Unidentified Prototypes . | . . . . Parts Lost 6 | . . 5 1 Power 1 | . . 1 . Propulsion 2 | . . 2 . Utility . | . . . . Weapon 3 | . . 2 1 Highest Loss Streak 5 | . . 5 1 To Critical Strikes 1 | . . . 1 Average Backups 4 | 4 5 2 5 Power . | . . . . Propulsion . | 2 2 . . Utility . | . . . 1 Weapon 2 | . 2 1 3 Tool/Special . | . . . . Unused Backups 9 | . 3 . 6 Power . | . . . . Propulsion 2 | . 2 . . Utility 2 | . . . 2 Weapon 4 | . 1 . 3 Tool/Special 1 | . . . 1 Average Slot Usage (%) 93 | . 85 83 99 Engine 11 | . 14 3 14 Treads 25 | . 4 26 28 Wheel 2 | . 23 . . Device 11 | . . 8 14 Storage 14 | . 14 14 14 Energy Gun 20 | . 24 28 16 Ballistic Gun 7 | . 3 . 11 Peak Build Rating 12 | 6 8 11 12 Average Rating 9 | 5 7 8 11 On Entrance 6 | . 6 8 11 Avg Prop Armor Cover (%) . | . . . . Naked Turns . | . . . . Heaviest Build 20 | 10 16 19 20 Greatest Support 40 | 40 40 40 40 Greatest Overweight (x) . | . . . . Average Overweight (x) . | . . . . Largest Inventory Capacity 8 | 8 8 8 8 Average Capacity 7 | 7 8 8 8 Most Carried 8 | 6 8 7 8 Average Carried 6 | 4 5 3 7 Final Capacity 8 | 8 8 8 8 Final Carried 8 | 6 5 7 8 Class Distribution -------------------- 100% | Mutant Dominant Class ---------------- Mutant | -10/Materials Mutant | -10/Mines Mutant | -10/Subcaves Resources | -11 -10 -10 -10 ----------- Run | Yrd Mat Min Sub Matter Collected 461 | 260 17 123 61 Remotely . | . . . . Salvage Created 205 | . 52 87 66 Parts 10 | . 6 1 3 Haulers Intercepted . | . . . . Recyclers Shooed 1 | . 1 . . Parts Field Recycled . | . . . . Retrieved Matter . | . . . . Parts Self-Destructed 3 | . . . 3 Prevented . | . . . . Parts Restored . | . . . . Kills | -11 -10 -10 -10 ------- Run | Yrd Mat Min Sub Combat Hostiles Destroyed 7 | . 3 2 2 Guns 7 | . 3 2 2 Classes Destroyed 3 | . 1 1 1 Swarmer 4 | . 3 . 1 Grunt 2 | . . 2 . Sentry 1 | . . . 1 Best Kill Streak 2 | . 2 1 1 Combat Bots Only 2 | . 2 1 1 Max Kills in Single Turn 1 | . 1 1 1 Gunslinging . | . . . . Exploded . | . . . . Melee . | . . . . Uniques/NPCs Destroyed . | . . . . Combat | -11 -10 -10 -10 -------- Run | Yrd Mat Min Sub Hostile Shots Fired 118 | . 46 32 40 Missed 37 | . 11 3 23 Hits 81 | . 35 29 17 Projectile 81 | . 35 29 17 AOE 1 | . . . 1 Critical Strikes 2 | . . 1 1 Damage Taken 940 | . 332 369 239 Core 253 | . 108 61 84 Absorbed by Shields . | . . . . Core Remaining (%) 100 | 100 . . . Volleys Fired 49 | . 16 17 16 Largest 2 | . 2 2 2 Hottest 112 | . 112 112 112 Shots Fired 84 | . 31 25 28 Gun 84 | . 31 25 28 Cannon . | . . . . Launcher . | . . . . Special . | . . . . Kinetic 13 | . . . 13 Thermal 61 | . 31 25 5 Explosive . | . . . . Electromagnetic 10 | . . . 10 Robot Hit Streak 6 | . 2 6 5 Robot Miss Streak 8 | . 8 2 3 Penetration Max . | . . . . Secondary Targets . | . . . . Shots Hit Robots 40 | . 8 15 17 Core Hits 14 | . 5 4 5 Critical Kills . | . . . . Critical Parts Destroyed . | . . . . Critical Strikes 3 | . 1 2 . Burn 3 | . 1 2 . Melee Attacks . | . . . . Impact . | . . . . Slashing . | . . . . Piercing . | . . . . Sneak Attacks . | . . . . Combat Hostiles . | . . . . Follow-up Attacks . | . . . . Damage Inflicted 615 | . 131 218 266 Guns 615 | . 131 218 266 Cannons . | . . . . Explosions . | . . . . Melee . | . . . . Ramming . | . . . . Kinetic 160 | . . . 160 Thermal 363 | . 131 218 14 Explosive . | . . . . Electromagnetic 92 | . . . 92 Impact . | . . . . Slashing . | . . . . Piercing . | . . . . Highest Corruption . | . . . . Average Corruption . | . . . . Corruption Purged . | . . . . Corruption Blocked . | . . . . Overload Shots . | . . . . Overflow Damage . | . . . . Projectiles . | . . . . Explosions . | . . . . Melee . | . . . . Knockbacks . | . . . . Impact . | . . . . Kinetic . | . . . . Secondary . | . . . . Self-Inflicted Damage . | . . . . Shots . | . . . . Rammed . | . . . . Targets Rammed . | . . . . Kicked . | . . . . Crushed . | . . . . Highest Temperature 419 | . 419 413 7 Average Temperature 202 | . 212 197 6 Received Heat Transfer 357 | . 72 213 72 Effects 9 | . 6 3 . Shutdowns 2 | . 2 . . Energy Bleed 2 | . 2 . . Interference 4 | . 2 2 . Matter Decay 1 | . . 1 . Siege Activations . | . . . . Martial Activations . | . . . . Shielding Activations . | . . . . Robots Disrupted . | . . . . Combat Hostiles . | . . . . Robots Corrupted . | . . . . Combat Hostiles . | . . . . Parts Fried . | . . . . Impact Corruptions . | . . . . Robots Melted . | . . . . Combat Hostiles . | . . . . Parts Melted . | . . . . Heat Transferred 1147 | . 407 703 37 Parts Sabotaged . | . . . . Parts Stolen . | . . . . Parts Stripped . | . . . . Power Chain Reactions . | . . . . Alert | -11 -10 -10 -10 ------- Run | Yrd Mat Min Sub Maximum Alert Level . | . . . . Low Security (%) 100 | 100 100 100 . Level 1 . | . . . . Level 2 . | . . . . Level 3 . | . . . . Level 4 . | . . . . Level 5 . | . . . . High Security . | . . . . Max Security . | . . . . Peak Influence 65 | . 65 35 . Initial 15 | . . 15 . Average 7 | . 29 2 . Influence Increases 205 | . 100 65 40 Destroy 0b10 Robot/C 140 | . 60 40 40 Destroy Leader 20 | . 10 10 . Disable Machine 30 | . 15 15 . Lose Combat Pursuer 15 | . 15 . . Influence Decreases 205 | . 60 105 40 Entered New Map 25 | . . 25 . Time Decay 145 | . 60 45 40 Lost Part 35 | . . 35 . Squads Dispatched . | . . . . Investigation . | . . . . Extermination . | . . . . Reinforcement . | . . . . Assault . | . . . . Garrison . | . . . . Intercept . | . . . . Searches Triggered . | . . . . Construction Impeded . | . . . . Haulers Reinforced . | . . . . Active Scanning Responses . | . . . . Cargo Convoy Interrupts . | . . . . Stealth | -11 -10 -10 -10 --------- Run | Yrd Mat Min Sub Distress Signals 1 | . 1 . . Communications Jammed . | . . . . Distress Signals . | . . . . Times Spotted 19 | . 7 3 9 Peak Tracking Total 4 | . 4 2 3 Tactical Retreats 1 | . 1 . . Traps | -11 -10 -10 -10 ------- Run | Yrd Mat Min Sub Traps Triggered . | . . . . Indirectly . | . . . . Trap Hack Attempts . | . . . . Triggered . | . . . . Disarmed . | . . . . Reprogrammed . | . . . . Reused . | . . . . Traps Extracted . | . . . . Installed 1 | . . 1 . Triggered . | . . . . Most Traps Carried 2 | . . 2 2 Machines | -11 -10 -10 -10 ---------- Run | Yrd Mat Min Sub Machines Disabled 3 | . 1 2 . Max in Single Turn 1 | . 1 1 . Machines Repaired . | . . . . Machines Dismantled . | . . . . Machines Sabotaged . | . . . . Overloaded Fab Kills . | . . . . Hacking | -11 -10 -10 -10 --------- Run | Yrd Mat Min Sub Machines Accessed . | . . . . Terminals . | . . . . Fabricators . | . . . . Repair Stations . | . . . . Recycling Units . | . . . . Scanalyzers . | . . . . Garrison Access . | . . . . Total Hacks . | . . . . Successful . | . . . . Failed . | . . . . Catastrophic . | . . . . Database Lockouts . | . . . . Manual . | . . . . Terminals . | . . . . Fabricators . | . . . . Repair Stations . | . . . . Recycling Units . | . . . . Scanalyzers . | . . . . Garrison Access . | . . . . Terminal Hacks . | . . . . Fabricator Hacks . | . . . . Repair Station Hacks . | . . . . Recycling Unit Hacks . | . . . . Scanalyzer . | . . . . Garrison Access Hacks . | . . . . Unauthorized Hacks . | . . . . Terminals . | . . . . Fabricators . | . . . . Repair Stations . | . . . . Recycling Units . | . . . . Scanalyzers . | . . . . Garrison Access . | . . . . Data Cores Recovered . | . . . . Used . | . . . . Hacking Detections . | . . . . Full Trace Events . | . . . . Feedback Events . | . . . . Feedback Blocked . | . . . . Robot Schematics Acquired . | . . . . Robots Built . | . . . . Authchips . | . . . . Time . | . . . . Total Robot Build Rating . | . . . . Part Schematics Acquired . | . . . . Parts Built . | . . . . Authchips . | . . . . Time . | . . . . Total Part Build Rating . | . . . . Part Studies Acquired . | . . . . Parts Repaired . | . . . . Time . | . . . . Parts Recycled . | . . . . Recycled Matter . | . . . . Retrieved Matter . | . . . . Retrieved Components . | . . . . Parts Scanalyzed . | . . . . Part Schematics Acquired . | . . . . Parts Damaged . | . . . . Bothacking | -11 -10 -10 -10 ------------ Run | Yrd Mat Min Sub Used RIF Installer . | . . . . Robots Hacked . | . . . . Non-combat . | . . . . Combat . | . . . . Robot Hacks Applied . | . . . . Relay Couplers Released . | . . . . Fabnet Peak Effective % . | . . . . Robots Rewired . | . . . . Allies Hacked . | . . . . Hacks Repelled . | . . . . Allies | -11 -10 -10 -10 -------- Run | Yrd Mat Min Sub Total Allies . | . . . . Largest Group . | . . . . Highest-Rated Group . | . . . . Highest-Rated Ally . | . . . . Total Orders . | . . . . Ally Attacks . | . . . . Total Damage . | . . . . Kills . | . . . . Allies Corrupted . | . . . . Allies Melted . | . . . . Intel | -11 -10 -10 -10 ------- Run | Yrd Mat Min Sub Active Infowar (turns) 1519 | . . 320 1199 Sensors 1519 | . . 320 1199 Robot Analysis Total . | . . . . Derelict Logs Recovered 1 | . . 1 . Drone Launches . | . . . . Drone Recoveries . | . . . . Exploration | -11 -10 -10 -10 ------------- Run | Yrd Mat Min Sub Turns Passed 2051 | 169 176 507 1199 Spaces Moved 1183 | 100 94 275 714 Core 6 | 6 . . . Treads 1098 | 94 16 274 714 Legs . | . . . . Wheels 79 | . 78 1 . Hover . | . . . . Flight . | . . . . Fastest Speed 50 | 50 100 100 160 Average Speed 155 | 153 110 159 160 Slowest Speed 160 | 160 160 160 160 Overloaded Moves . | . . . . Propulsion Burnouts . | . . . . Robots Hopped . | . . . . Potential Cave-ins . | . . . . Cave-ins Triggered . | . . . . Exploration Rate (%) 34 | 6 17 55 60 Regions Visited 3 Branch Regions 2 Pre-discovered Areas 1 | . . 1 . Known Exits Taken . | . . . . Unknown Exits Taken 3 | 1 1 1 . Scrap Searched 3 | . . 1 2 Spaces Dug . | . . . . Terrain Destroyed . | . . . . Melee . | . . . . Projectile . | . . . . AOE . | . . . . Terrain Rammed . | . . . . Walls Destroyed . | . . . . Machines Disabled . | . . . . Actions | -11 -10 -10 -10 --------- Run | Yrd Mat Min Sub Total 1319 | 113 140 320 746 Wait 16 | . 10 4 2 Move 1180 | 99 93 274 714 Hop . | . . . . Pick Up 30 | 7 5 12 6 Fast Attach 6 | 6 . . . Attach 14 | . 5 7 2 Detach 7 | . 5 1 1 Swap 1 | . . . 1 Drop 15 | 1 6 4 4 Fire 49 | . 16 17 16 Melee . | . . . . Ram . | . . . . Kick . | . . . . Crush . | . . . . Escape Stasis . | . . . . Rewire . | . . . . Trap 1 | . . 1 . Miscellaneous . | . . . . Route ------- -11/Scrapyard -10/Materials -10/Mines -10/Subcaves History --------- Turn | Location | Event 44 | -11/Scrapyard | Discovered new exit (range 14) 170 | -11/Scrapyard | Entered Materials 231 | -10/Materials | Discovered new exit (range 16) 312 | -10/Materials | Build established: Mutant 346 | -10/Materials | Entered Mines 357 | -10/Mines | Core integrity fell below 50% 405 | -10/Mines | Lost 5 parts (1p2n2w) 406 | -10/Mines | Met a Derelict bent on vengeance 494 | -10/Mines | Learned location of Zion (-6) 526 | -10/Mines | Found a hidden stash of uninstalled traps 745 | -10/Mines | Joined a pair of Derelicts in attacking an 0b10 outpost 817 | -10/Mines | A weapon hastily lodged in a ceiling crevice suddenly fell to the ground 842 | -10/Mines | Discovered new exit (range 6) 853 | -10/Mines | Entered Subcaves 898 | -10/Subcaves | Ambushed by swarm of Subdwellers 915 | -10/Subcaves | Core integrity fell below 20% 930 | -10/Subcaves | Disturbed a concealed Subdweller 944 | -10/Subcaves | Lost 3 allies 1076 | -10/Subcaves | Shifting Twisted Machinery released Sub. Machine Gun 1235 | -10/Subcaves | A swath of the cavern ceiling suddenly collapsed 1935 | -10/Subcaves | Shifting Twisted Machinery released Battle Cannon 1948 | -10/Subcaves | Shifting Twisted Machinery released Battle Cannon 2052 | -10/Subcaves | Destroyed by Autobeam Turret with Autobeam Last Messages --------------- A swath of the cavern ceiling suddenly collapses. Disabling or destroying stationary machines or terrain requires that a single hit meet or exceed the object's Armor value. Inspect machines by right-clicking on them, and walls via Ctrl-RMB (or as any other object in Keyboard Mode). Hovering the cursor over an object also shows its Armor in the Scan window. 01312_ Dropped Flamer. 01312_ Acquired Riot Gun. 01425_ S-10 Pest destroyed. 01439_ XT-ZIB(h) destroyed. 01467_ Y-45 Defender destroyed. 01474_ Lgt. Treads fries itself beyond repair. 01475_ Acquired 36 matter. Battle Cannon falls loose from the Twisted Machinery. 02007_ Subatomizers dissect the Mak. Hover Unit. Map ----- +----------------------------------------------------+ | #?????????# ### # # ## ### #?## # | | ##????????# ##?# ##?### ##??# # | | #????????# ##??# ## #????# #???# | | #????????## #??# ###### #????# #####" | | ##?????????# #??# ????## ##????## ##"" | | ???????????####??# ##????#######??????#" "#"" | | ?????????????????# #??????????????????#### ##"" | | ????????????##??### #??????????????????????# ##"# | | #?????????? ### ?# #???????????????????????"# # | | #????????# ## ## ????????????????????????"? ? | | #????????# #?# ????????????????????????" ?? | | #????##### ### ????????? ???????????????? ? | | ##???# ## ??????? ???????????????? | | ##??# =#?# ??????? ????????????????? | | #### #? #*%#??#??????# #????????????????? | | ### &##???????# #????????????????? | | ## #?????## #????????????????? | | * #????## #????????????????? | | %= ##??## #????????????????? | | # #### #??? ?????????????????? | | # ##### ##?? #???????????????????? | | # ## #### #???????????????????? | | #???????????????????? | | ##??????????????????? | | ## % ##?????????????????? | | ## ##### @ #?????????????????? | | #### ### #???######## #????????????????? | | ## ##??###?## ##?????????????##????????????????? | | ?####????????####????????????????????????????????? | | ?????????????????????????????????????????????????? | | ?????????????????????????????????????????????????? | | ?????????????????????????????????????????????????? | | ?????????????????????????????????????????????????? | | ?????????????????????????????????????????????????? | | ?????????????????????????????????????????????????? | | ?????????????????????????????????????????????????? | | ?????????????????????????????????????????????????? | | ?????????????????????????????????????????????????? | | ?????????????????????????????????????????????????? | | ?????????????????????????????????????????????????? | | ?????????????????????????????????????????????????? | | ?????????????????????????????????????????????????? | | ?????????????????????????????????????????????????? | | | | | | | | | | | | | | | +----------------------------------------------------+ Best States ------------- Heat Dissipation 25 Energy Generation 12 Energy Capacity 265 Matter Stores 300 Matter Capacity 300 Sight Range 16 Robot Scan Range 14 Terrain Scan Density 10 Evasion (%) 50 Recoil Reduction 2 Item Schematics ----------------- None Robot Schematics ------------------ None Fabricated ------------ Nothing Repaired ---------- Nothing Studied --------- None Alien Tech Used ----------------- None Achievements -------------- Physics Hates This One Trick Challenges ------------ None Game ------ Seed TrapDeflectorTracker Manual? 0 Play Time 01:01:23 Cumulative 6.0 hours Start 2026.08.26 @ 18:07:50 End 2026.08.26 @ 23:24:27 Sessions 2 Manual Loads 0 Difficulty Rogue Special Mode None Game No. 9 Rogue 9 Adventurer 0 Explorer 0 Win Type - Total 0 Types 0/0/0/0/0/0/0/0/0/0 Lore% 2 Gallery% 5 Achievement% 5 Wizard Run 0 Options --------- Layout 2 ASCII 0 Keyboard 1 Movement Numpad Keybinds 0 Fullscreen 1 Font 32/SmallcapsGlow Map View 50x44 Zoom Use 0% Tactical HUD 1 Map Filters NONE Filters NONE Steam 1 RUN: caba322a-3eda-48d2-90a6-5a044515ec5d